[Event "Live Chess"]
[Site "Chess.com"]
[Date "2011.01.04"]
[Round "-"]
[White "hipposcottimus"]
[Black "Zafodbeeblebrox"]
[Result "1-0"]
[CurrentPosition "3R4/Q3r1pp/1ppk3n/8/1P6/8/P5PP/R5K1 b - -"]
[Timezone "UTC"]
[ECO "C00"]
[ECOUrl "https://www.chess.com/openings/French-Defense-Steiner-Variation"]
[UTCDate "2011.01.04"]
[UTCTime "05:14:17"]
[WhiteElo "1393"]
[BlackElo "1290"]
[TimeControl "120+12"]
[Termination "hipposcottimus won by resignation"]
[StartTime "05:14:17"]
[EndDate "2011.01.04"]
[EndTime "05:25:21"]
[Link "https://www.chess.com/game/live/84024059"]

1. e4 {[%clk 0:02:00]} 1... e6 {[%clk 0:02:00]} 2. c4 {[%clk 0:02:09.9]} 2... f6 {[%clk 0:02:07.3]} 3. d4 {[%clk 0:02:20.5]} 3... c6 {[%clk 0:02:17.6]} 4. Nc3 {[%clk 0:02:29.3]} 4... d5 {[%clk 0:02:19.1]} 5. e5 {[%clk 0:02:33.8]} 5... Nd7 {[%clk 0:02:19.2]} 6. cxd5 {[%clk 0:02:42.5]} 6... exd5 {[%clk 0:02:17.8]} 7. Bf4 {[%clk 0:02:47.3]} 7... fxe5 {[%clk 0:02:21.2]} 8. dxe5 {[%clk 0:02:57.1]} 8... Qb6 {[%clk 0:02:29.6]} 9. e6 {[%clk 0:02:57.3]} 9... Ndf6 {[%clk 0:02:36.1]} 10. Na4 {[%clk 0:02:30.4]} 10... Qb4+ {[%clk 0:02:43.2]} 11. Bd2 {[%clk 0:02:38.6]} 11... Qe4+ {[%clk 0:02:47]} 12. Be3 {[%clk 0:02:37.3]} 12... Bb4+ {[%clk 0:02:47.3]} 13. Nc3 {[%clk 0:02:42.2]} 13... Bxe6 {[%clk 0:01:30.5]} 14. Nf3 {[%clk 0:02:51.1]} 14... O-O-O {[%clk 0:01:34.5]} 15. Bd3 {[%clk 0:02:58]} 15... d4 {[%clk 0:01:40.1]} 16. Bxe4 {[%clk 0:03:03.8]} 16... dxe3 {[%clk 0:01:42.4]} 17. Qe2 {[%clk 0:02:53.9]} 17... exf2+ {[%clk 0:01:40.8]} 18. Qxf2 {[%clk 0:02:53.3]} 18... Nxe4 {[%clk 0:01:43.7]} 19. Qe3 {[%clk 0:02:54.2]} 19... Nxc3 {[%clk 0:01:32.7]} 20. bxc3 {[%clk 0:03:00]} 20... Re8 {[%clk 0:01:27.3]} 21. cxb4 {[%clk 0:03:09]} 21... Bd7 {[%clk 0:01:35.5]} 22. Ne5 {[%clk 0:03:14.7]} 22... Nh6 {[%clk 0:01:23.3]} 23. Qd4 {[%clk 0:03:08.8]} 23... Re7 {[%clk 0:01:03.5]} 24. O-O {[%clk 0:03:16.9]} 24... Rd8 {[%clk 0:00:56.4]} 25. Nxd7 {[%clk 0:03:10.7]} 25... Rdxd7 {[%clk 0:00:59]} 26. Qxa7 {[%clk 0:03:21.6]} 26... Kc7 {[%clk 0:00:55.6]} 27. Rf8 {[%clk 0:03:24.8]} 27... Rd8 {[%clk 0:00:56.9]} 28. Qa5+ {[%clk 0:03:33]} 28... b6 {[%clk 0:01:04.8]} 29. Qa7+ {[%clk 0:03:38.4]} 29... Kd6 {[%clk 0:01:12.2]} 30. Rxd8+ {[%clk 0:03:46.8]} 1-0

[Event "Live Chess"]
[Site "Chess.com"]
[Date "2011.01.04"]
[Round "-"]
[White "hipposcottimus"]
[Black "soul_warrior"]
[Result "1-0"]
[CurrentPosition "r3k1q1/pp2Qpbr/2p5/4pN2/2P1P3/5N2/PPP2P1p/R5RK b - -"]
[Timezone "UTC"]
[ECO "C42"]
[ECOUrl "https://www.chess.com/openings/Petrovs-Defense-Urusov-Gambit"]
[UTCDate "2011.01.04"]
[UTCTime "05:02:17"]
[WhiteElo "1387"]
[BlackElo "1263"]
[TimeControl "600"]
[Termination "hipposcottimus won by checkmate"]
[StartTime "05:02:17"]
[EndDate "2011.01.04"]
[EndTime "05:11:02"]
[Link "https://www.chess.com/game/live/84021479"]

1. e4 {[%clk 0:10:00]} 1... e5 {[%clk 0:10:00]} 2. Nf3 {[%clk 0:09:58.5]} 2... Nf6 {[%clk 0:09:58.2]} 3. Bc4 {[%clk 0:09:55.5]} 3... d6 {[%clk 0:09:38.2]} 4. d3 {[%clk 0:09:43.8]} 4... Nc6 {[%clk 0:09:31.2]} 5. Bg5 {[%clk 0:09:25.5]} 5... Qe7 {[%clk 0:09:22.7]} 6. Nc3 {[%clk 0:09:17.5]} 6... Na5 {[%clk 0:09:17.8]} 7. Bxf6 {[%clk 0:08:58.7]} 7... Qxf6 {[%clk 0:09:11.4]} 8. Nd5 {[%clk 0:08:58.3]} 8... Qd8 {[%clk 0:08:58.4]} 9. O-O {[%clk 0:08:54.4]} 9... Nxc4 {[%clk 0:08:55.7]} 10. dxc4 {[%clk 0:08:53.4]} 10... c6 {[%clk 0:08:51.3]} 11. Ne3 {[%clk 0:08:48.1]} 11... g5 {[%clk 0:08:31]} 12. Ne1 {[%clk 0:08:32.3]} 12... g4 {[%clk 0:08:23.2]} 13. Nxg4 {[%clk 0:08:29.4]} 13... h5 {[%clk 0:08:13.6]} 14. Ne3 {[%clk 0:08:11.3]} 14... h4 {[%clk 0:08:11.2]} 15. h3 {[%clk 0:08:06.5]} 15... Qg5 {[%clk 0:07:58]} 16. Nf3 {[%clk 0:07:47.7]} 16... Qg6 {[%clk 0:07:48.8]} 17. Qd3 {[%clk 0:07:38.9]} 17... Bxh3 {[%clk 0:07:45.2]} 18. Kh1 {[%clk 0:07:19.4]} 18... Bxg2+ {[%clk 0:07:28.3]} 19. Nxg2 {[%clk 0:07:13.4]} 19... h3 {[%clk 0:07:26]} 20. Ngh4 {[%clk 0:07:06.1]} 20... Qg8 {[%clk 0:07:00.1]} 21. Rg1 {[%clk 0:07:03.3]} 21... Bg7 {[%clk 0:06:36.4]} 22. Nf5 {[%clk 0:06:50.2]} 22... Rh7 {[%clk 0:06:03.7]} 23. Nxd6+ {[%clk 0:06:42.9]} 23... Kf8 {[%clk 0:05:30.4]} 24. Nf5 {[%clk 0:06:29.8]} 24... h2 {[%clk 0:05:14.1]} 25. Qd6+ {[%clk 0:06:22.9]} 25... Ke8 {[%clk 0:05:07.1]} 26. Qe7# {[%clk 0:06:21.6]} 1-0

[Event "Live Chess"]
[Site "Chess.com"]
[Date "2011.01.04"]
[Round "-"]
[White "vish555"]
[Black "hipposcottimus"]
[Result "0-1"]
[CurrentPosition "7r/1p1B4/5k2/2n2pp1/7K/6P1/4R2P/r3n3 w - -"]
[Timezone "UTC"]
[ECO "A00"]
[ECOUrl "https://www.chess.com/openings/Kings-Fianchetto-Opening-1...e5-2.Bg2-d5-3.d3"]
[UTCDate "2011.01.04"]
[UTCTime "04:49:21"]
[WhiteElo "1133"]
[BlackElo "1381"]
[TimeControl "300+1"]
[Termination "hipposcottimus won by checkmate"]
[StartTime "04:49:21"]
[EndDate "2011.01.04"]
[EndTime "05:00:16"]
[Link "https://www.chess.com/game/live/84019084"]

1. g3 {[%clk 0:05:00]} 1... e5 {[%clk 0:05:00]} 2. Bg2 {[%clk 0:05:00.1]} 2... d5 {[%clk 0:05:00.5]} 3. d3 {[%clk 0:04:59.1]} 3... c5 {[%clk 0:05:00.9]} 4. c4 {[%clk 0:04:48.9]} 4... dxc4 {[%clk 0:04:54.8]} 5. e4 {[%clk 0:04:46.2]} 5... cxd3 {[%clk 0:04:52.6]} 6. Nf3 {[%clk 0:04:41.9]} 6... Bg4 {[%clk 0:04:47.1]} 7. Nc3 {[%clk 0:04:32.4]} 7... Bxf3 {[%clk 0:04:45]} 8. Bxf3 {[%clk 0:04:25]} 8... c4 {[%clk 0:04:45.4]} 9. O-O {[%clk 0:04:20]} 9... Bc5 {[%clk 0:04:39.7]} 10. b3 {[%clk 0:04:17]} 10... Qd4 {[%clk 0:04:26.3]} 11. Qd2 {[%clk 0:04:07.2]} 11... Bb4 {[%clk 0:04:20]} 12. Bb2 {[%clk 0:04:06.2]} 12... Nc6 {[%clk 0:04:13.1]} 13. Qe3 {[%clk 0:03:42.1]} 13... Bxc3 {[%clk 0:04:09]} 14. Bxc3 {[%clk 0:03:35.2]} 14... Qxc3 {[%clk 0:04:07.7]} 15. Rac1 {[%clk 0:03:24.6]} 15... Qb2 {[%clk 0:03:46.4]} 16. Rxc4 {[%clk 0:03:17.5]} 16... Qxa2 {[%clk 0:03:43.7]} 17. Qxd3 {[%clk 0:03:15.8]} 17... Nf6 {[%clk 0:03:36.3]} 18. b4 {[%clk 0:02:54.9]} 18... Qa6 {[%clk 0:03:24]} 19. Rc3 {[%clk 0:02:45.5]} 19... Qxd3 {[%clk 0:03:13.2]} 20. Rxd3 {[%clk 0:02:45.4]} 20... Nxb4 {[%clk 0:03:13.1]} 21. Rb3 {[%clk 0:02:43.6]} 21... a5 {[%clk 0:03:11.7]} 22. Be2 {[%clk 0:02:36.2]} 22... Nxe4 {[%clk 0:03:04.2]} 23. Bb5+ {[%clk 0:02:31.7]} 23... Ke7 {[%clk 0:02:57.2]} 24. Re1 {[%clk 0:02:23.4]} 24... Nc5 {[%clk 0:02:26]} 25. Rxe5+ {[%clk 0:02:20.1]} 25... Kd6 {[%clk 0:02:16.4]} 26. Rbe3 {[%clk 0:02:03.8]} 26... a4 {[%clk 0:02:03.4]} 27. f4 {[%clk 0:01:57.3]} 27... a3 {[%clk 0:02:03.2]} 28. Rxa3 {[%clk 0:01:48.9]} 28... Rxa3 {[%clk 0:02:01.9]} 29. Re2 {[%clk 0:01:37.1]} 29... Nbd3 {[%clk 0:01:44.8]} 30. Be8 {[%clk 0:01:00]} 30... Ra1+ {[%clk 0:01:18.7]} 31. Kg2 {[%clk 0:00:40.1]} 31... Ne1+ {[%clk 0:01:18.1]} 32. Kh3 {[%clk 0:00:37.9]} 32... f5 {[%clk 0:01:04.9]} 33. Rd2+ {[%clk 0:00:31.1]} 33... Ke7 {[%clk 0:00:57.1]} 34. Re2+ {[%clk 0:00:21.8]} 34... Kf6 {[%clk 0:00:47.3]} 35. Kh4 {[%clk 0:00:16.3]} 35... h6 {[%clk 0:00:34.4]} 36. Bd7 {[%clk 0:00:07.5]} 36... g5+ {[%clk 0:00:31.3]} 37. fxg5+ {[%clk 0:00:06.3]} 37... hxg5# {[%clk 0:00:31.2]} 0-1

[Event "Live Chess"]
[Site "Chess.com"]
[Date "2011.01.04"]
[Round "-"]
[White "hipposcottimus"]
[Black "vish555"]
[Result "0-1"]
[CurrentPosition "4r1k1/p4p1p/6r1/2B1P3/7p/5q2/PP5P/3R3K w - -"]
[Timezone "UTC"]
[ECO "C40"]
[ECOUrl "https://www.chess.com/openings/Kings-Pawn-Opening-Kings-Knight-Variation"]
[UTCDate "2011.01.04"]
[UTCTime "04:40:10"]
[WhiteElo "1378"]
[BlackElo "1136"]
[TimeControl "300+1"]
[Termination "vish555 won by checkmate"]
[StartTime "04:40:10"]
[EndDate "2011.01.04"]
[EndTime "04:48:41"]
[Link "https://www.chess.com/game/live/84017085"]

1. e4 {[%clk 0:05:00]} 1... e5 {[%clk 0:05:00]} 2. Nf3 {[%clk 0:04:46.9]} 2... g6 {[%clk 0:04:57.1]} 3. Bc4 {[%clk 0:04:46.9]} 3... Bg7 {[%clk 0:04:56.2]} 4. d4 {[%clk 0:04:45.3]} 4... exd4 {[%clk 0:04:46.2]} 5. e5 {[%clk 0:04:40.6]} 5... Qe7 {[%clk 0:04:43.8]} 6. Qxd4 {[%clk 0:04:38.6]} 6... c5 {[%clk 0:04:37.4]} 7. Qf4 {[%clk 0:04:29.9]} 7... d5 {[%clk 0:04:18.2]} 8. Bxd5 {[%clk 0:04:26.2]} 8... Be6 {[%clk 0:04:17.8]} 9. Bxb7 {[%clk 0:04:24.8]} 9... Qxb7 {[%clk 0:04:11]} 10. O-O {[%clk 0:04:22.5]} 10... Nc6 {[%clk 0:04:05.2]} 11. Nc3 {[%clk 0:04:22.4]} 11... Nxe5 {[%clk 0:03:57.3]} 12. Nxe5 {[%clk 0:04:19]} 12... Nf6 {[%clk 0:03:54.7]} 13. Ne4 {[%clk 0:04:15.3]} 13... O-O {[%clk 0:03:52.5]} 14. Nxc5 {[%clk 0:04:13.7]} 14... Qd5 {[%clk 0:03:38.5]} 15. Nxe6 {[%clk 0:03:47.3]} 15... Qxe6 {[%clk 0:03:37.1]} 16. Be3 {[%clk 0:03:40.9]} 16... Nh5 {[%clk 0:03:31.5]} 17. Qc4 {[%clk 0:03:03.2]} 17... Bxe5 {[%clk 0:03:22.6]} 18. f4 {[%clk 0:03:00]} 18... Qxc4 {[%clk 0:03:17.1]} 19. fxe5 {[%clk 0:02:55]} 19... Qe4 {[%clk 0:03:02.7]} 20. Bh6 {[%clk 0:02:53.7]} 20... Rfe8 {[%clk 0:02:54.7]} 21. Rae1 {[%clk 0:02:49.1]} 21... Qxc2 {[%clk 0:02:53]} 22. Rf2 {[%clk 0:02:46]} 22... Qc7 {[%clk 0:02:44.4]} 23. Rfe2 {[%clk 0:02:42.2]} 23... Re7 {[%clk 0:02:23.5]} 24. Bg5 {[%clk 0:02:40.3]} 24... Re6 {[%clk 0:02:20.9]} 25. g4 {[%clk 0:02:38.5]} 25... Rae8 {[%clk 0:02:20.2]} 26. gxh5 {[%clk 0:02:37.1]} 26... gxh5 {[%clk 0:02:19]} 27. Bf4 {[%clk 0:02:35.9]} 27... Qd7 {[%clk 0:02:11.8]} 28. Rg2+ {[%clk 0:02:34.1]} 28... Kf8 {[%clk 0:02:05.2]} 29. Rg5 {[%clk 0:02:20.1]} 29... h4 {[%clk 0:02:02.5]} 30. Rh5 {[%clk 0:02:17.3]} 30... Qd4+ {[%clk 0:01:59.8]} 31. Be3 {[%clk 0:02:02.6]} 31... Qg4+ {[%clk 0:01:55.9]} 32. Kh1 {[%clk 0:01:26.8]} 32... Qxh5 {[%clk 0:01:51]} 33. Bc5+ {[%clk 0:01:27.5]} 33... Kg8 {[%clk 0:01:45.7]} 34. Rg1+ {[%clk 0:01:28.1]} 34... Rg6 {[%clk 0:01:42.5]} 35. Rd1 {[%clk 0:01:15.3]} 35... Qf3# {[%clk 0:01:41.8]} 0-1

[Event "Live Chess"]
[Site "Chess.com"]
[Date "2011.01.04"]
[Round "-"]
[White "hipposcottimus"]
[Black "The_UnderEstimated"]
[Result "0-1"]
[CurrentPosition "K7/6p1/qbk4p/p6P/P5p1/8/8/8 w - -"]
[Timezone "UTC"]
[ECO "C41"]
[ECOUrl "https://www.chess.com/openings/Philidor-Defense-Hanham-Variation"]
[UTCDate "2011.01.04"]
[UTCTime "02:35:56"]
[WhiteElo "1390"]
[BlackElo "1068"]
[TimeControl "600"]
[Termination "The_UnderEstimated won on time"]
[StartTime "02:35:56"]
[EndDate "2011.01.04"]
[EndTime "02:54:09"]
[Link "https://www.chess.com/game/live/83990901"]

1. e4 {[%clk 0:10:00]} 1... e5 {[%clk 0:10:00]} 2. Nf3 {[%clk 0:09:58.2]} 2... d6 {[%clk 0:09:56.9]} 3. d4 {[%clk 0:09:56.3]} 3... Nd7 {[%clk 0:09:46.4]} 4. dxe5 {[%clk 0:09:53.6]} 4... dxe5 {[%clk 0:09:43]} 5. Nbd2 {[%clk 0:09:43.2]} 5... Bd6 {[%clk 0:09:36.1]} 6. Nc4 {[%clk 0:09:39.8]} 6... Qe7 {[%clk 0:09:19.1]} 7. Be2 {[%clk 0:08:59.3]} 7... h6 {[%clk 0:09:09.1]} 8. O-O {[%clk 0:08:52.9]} 8... Ngf6 {[%clk 0:09:05.8]} 9. Bd3 {[%clk 0:08:32.5]} 9... Kf8 {[%clk 0:09:01.6]} 10. Re1 {[%clk 0:07:34.6]} 10... b5 {[%clk 0:08:39.8]} 11. Ne3 {[%clk 0:07:27.2]} 11... a6 {[%clk 0:08:36.5]} 12. Nd5 {[%clk 0:07:16.1]} 12... Nxd5 {[%clk 0:08:33.7]} 13. exd5 {[%clk 0:07:15.3]} 13... Nb6 {[%clk 0:08:19.2]} 14. Be4 {[%clk 0:07:03.8]} 14... Bg4 {[%clk 0:08:13]} 15. Be3 {[%clk 0:06:56.5]} 15... Nc4 {[%clk 0:08:02.9]} 16. b3 {[%clk 0:06:50]} 16... Nxe3 {[%clk 0:07:49]} 17. fxe3 {[%clk 0:06:48.1]} 17... c5 {[%clk 0:07:34.9]} 18. dxc6 {[%clk 0:06:42.7]} 18... Rd8 {[%clk 0:07:25.8]} 19. Qd2 {[%clk 0:06:01.9]} 19... Bb4 {[%clk 0:07:15.4]} 20. Qxd8+ {[%clk 0:05:09.6]} 20... Qxd8 {[%clk 0:07:12.1]} 21. Red1 {[%clk 0:05:07.4]} 21... Qe7 {[%clk 0:06:56.7]} 22. c4 {[%clk 0:04:47.1]} 22... bxc4 {[%clk 0:06:49.3]} 23. bxc4 {[%clk 0:04:43]} 23... Bc5 {[%clk 0:06:28.8]} 24. Rab1 {[%clk 0:04:27.5]} 24... Bxf3 {[%clk 0:05:53.8]} 25. Rb8+ {[%clk 0:04:22.3]} 25... Qe8 {[%clk 0:05:38.5]} 26. Rxe8+ {[%clk 0:04:20]} 26... Kxe8 {[%clk 0:05:36]} 27. Bxf3 {[%clk 0:04:18.5]} 27... Bxe3+ {[%clk 0:05:25.7]} 28. Kf1 {[%clk 0:04:16.8]} 28... Ke7 {[%clk 0:05:19.3]} 29. Rd7+ {[%clk 0:04:14.1]} 29... Ke8 {[%clk 0:05:04.2]} 30. Rb7 {[%clk 0:04:05.7]} 30... Bg5 {[%clk 0:04:40.5]} 31. c7 {[%clk 0:04:01.7]} 31... Kd7 {[%clk 0:04:26.5]} 32. c5 {[%clk 0:03:50.8]} 32... Rc8 {[%clk 0:04:17.5]} 33. c6+ {[%clk 0:03:47.8]} 33... Kd6 {[%clk 0:04:09.9]} 34. Bg4 {[%clk 0:03:37.7]} 34... Rxc7 {[%clk 0:04:07.6]} 35. Rxc7 {[%clk 0:03:34.2]} 35... Kxc7 {[%clk 0:04:05.1]} 36. Bf3 {[%clk 0:03:32.6]} 36... a5 {[%clk 0:03:58.7]} 37. Ke2 {[%clk 0:03:27.9]} 37... f5 {[%clk 0:03:47.8]} 38. Bd5 {[%clk 0:03:19.7]} 38... Bf4 {[%clk 0:03:36.8]} 39. g3 {[%clk 0:03:17]} 39... Bg5 {[%clk 0:03:27.6]} 40. h4 {[%clk 0:03:12.1]} 40... Be7 {[%clk 0:03:18.9]} 41. Ke3 {[%clk 0:03:04.7]} 41... Kd6 {[%clk 0:03:07.3]} 42. Kd3 {[%clk 0:02:23.4]} 42... Bd8 {[%clk 0:02:50.3]} 43. Kc4 {[%clk 0:02:17.6]} 43... e4 {[%clk 0:02:43.7]} 44. Kb5 {[%clk 0:01:12.4]} 44... Kxd5 {[%clk 0:02:39.3]} 45. a4 {[%clk 0:01:09.1]} 45... e3 {[%clk 0:02:30.7]} 46. Ka6 {[%clk 0:00:53.3]} 46... Kxc6 {[%clk 0:02:24.1]} 47. g4 {[%clk 0:00:47.6]} 47... fxg4 {[%clk 0:02:16.4]} 48. h5 {[%clk 0:00:29.2]} 48... e2 {[%clk 0:02:14.7]} 49. Ka7 {[%clk 0:00:27.2]} 49... e1=Q {[%clk 0:02:09.5]} 50. Ka6 {[%clk 0:00:26.9]} 50... Qe2+ {[%clk 0:02:04.7]} 51. Ka7 {[%clk 0:00:25]} 51... Bb6+ {[%clk 0:01:58.2]} 52. Ka8 {[%clk 0:00:20.9]} 52... Qa6+ {[%clk 0:01:52.9]} 0-1

[Event "Live Chess"]
[Site "Chess.com"]
[Date "2011.01.04"]
[Round "-"]
[White "dickensian"]
[Black "hipposcottimus"]
[Result "0-1"]
[CurrentPosition "3r1r2/ppp5/5k2/4p1pp/4P3/2P1KP2/P1P3PP/3R1b2 w - -"]
[Timezone "UTC"]
[ECO "C45"]
[ECOUrl "https://www.chess.com/openings/Scotch-Game-3...d6"]
[UTCDate "2011.01.04"]
[UTCTime "02:27:10"]
[WhiteElo "1413"]
[BlackElo "1390"]
[TimeControl "120+12"]
[Termination "hipposcottimus won by resignation"]
[StartTime "02:27:10"]
[EndDate "2011.01.04"]
[EndTime "02:33:14"]
[Link "https://www.chess.com/game/live/83989302"]

1. e4 {[%clk 0:02:00]} 1... e5 {[%clk 0:02:00]} 2. Nf3 {[%clk 0:02:10.3]} 2... Nc6 {[%clk 0:02:10.5]} 3. d4 {[%clk 0:02:20.3]} 3... d6 {[%clk 0:02:20.1]} 4. Bc4 {[%clk 0:02:25]} 4... Nf6 {[%clk 0:02:24.4]} 5. O-O {[%clk 0:02:27.5]} 5... Bg4 {[%clk 0:02:27]} 6. dxe5 {[%clk 0:02:34]} 6... Nxe5 {[%clk 0:02:35.5]} 7. Bxf7+ {[%clk 0:02:38.9]} 7... Kxf7 {[%clk 0:02:33.9]} 8. Nxe5+ {[%clk 0:02:48.1]} 8... dxe5 {[%clk 0:02:42.6]} 9. Qxd8 {[%clk 0:02:57.7]} 9... Rxd8 {[%clk 0:02:53.6]} 10. f3 {[%clk 0:03:06]} 10... Bd7 {[%clk 0:02:54.7]} 11. Nc3 {[%clk 0:03:14.8]} 11... Bb4 {[%clk 0:02:56.9]} 12. Bg5 {[%clk 0:03:13.5]} 12... Bxc3 {[%clk 0:02:52.7]} 13. Bxf6 {[%clk 0:03:22.1]} 13... Kxf6 {[%clk 0:02:56.4]} 14. bxc3 {[%clk 0:03:31.9]} 14... Rhf8 {[%clk 0:02:59]} 15. Rab1 {[%clk 0:03:38.4]} 15... Bc6 {[%clk 0:03:02.5]} 16. Rbd1 {[%clk 0:03:42.3]} 16... g5 {[%clk 0:03:00.8]} 17. Kf2 {[%clk 0:02:38]} 17... h5 {[%clk 0:03:02.7]} 18. Ke2 {[%clk 0:02:15.6]} 18... Bb5+ {[%clk 0:03:10.5]} 19. Ke3 {[%clk 0:02:21.5]} 19... Bxf1 {[%clk 0:03:20.3]} 0-1

[Event "Live Chess"]
[Site "Chess.com"]
[Date "2011.01.04"]
[Round "-"]
[White "caliche15904"]
[Black "hipposcottimus"]
[Result "0-1"]
[CurrentPosition "4r1k1/pp4pp/2nr4/8/5P2/7P/P5P1/6K1 b - -"]
[Timezone "UTC"]
[ECO "A01"]
[ECOUrl "https://www.chess.com/openings/Nimzowitsch-Larsen-Attack-Classical-Variation-2.Bb2"]
[UTCDate "2011.01.04"]
[UTCTime "02:16:29"]
[WhiteElo "1288"]
[BlackElo "1381"]
[TimeControl "600"]
[Termination "hipposcottimus won by resignation"]
[StartTime "02:16:29"]
[EndDate "2011.01.04"]
[EndTime "02:25:31"]
[Link "https://www.chess.com/game/live/83986994"]

1. b3 {[%clk 0:10:00]} 1... d5 {[%clk 0:10:00]} 2. Bb2 {[%clk 0:09:58.1]} 2... d4 {[%clk 0:09:58.7]} 3. c4 {[%clk 0:09:56.6]} 3... c5 {[%clk 0:09:57.1]} 4. e3 {[%clk 0:09:54.2]} 4... e5 {[%clk 0:09:55.4]} 5. exd4 {[%clk 0:09:52.3]} 5... cxd4 {[%clk 0:09:54.7]} 6. d3 {[%clk 0:09:50.7]} 6... Bf5 {[%clk 0:09:47.6]} 7. Ne2 {[%clk 0:09:47.2]} 7... Bg6 {[%clk 0:09:46.5]} 8. f3 {[%clk 0:09:45.4]} 8... f5 {[%clk 0:09:45.2]} 9. Nc1 {[%clk 0:09:41.8]} 9... Nf6 {[%clk 0:09:43.8]} 10. Nd2 {[%clk 0:09:40.5]} 10... Bb4 {[%clk 0:09:25.9]} 11. Be2 {[%clk 0:09:36.7]} 11... O-O {[%clk 0:09:15.5]} 12. O-O {[%clk 0:09:34.6]} 12... Qa5 {[%clk 0:09:04.5]} 13. Nb1 {[%clk 0:09:25.5]} 13... Bc3 {[%clk 0:08:49]} 14. Bxc3 {[%clk 0:09:21.8]} 14... dxc3 {[%clk 0:08:45.8]} 15. Qc2 {[%clk 0:09:18.5]} 15... Qc5+ {[%clk 0:08:40.3]} 16. Kh1 {[%clk 0:09:11.3]} 16... Nc6 {[%clk 0:08:32.4]} 17. Qxc3 {[%clk 0:09:03.1]} 17... Nd4 {[%clk 0:08:27.1]} 18. b4 {[%clk 0:08:50.3]} 18... Qc6 {[%clk 0:07:52.7]} 19. c5 {[%clk 0:08:43.8]} 19... Nh5 {[%clk 0:07:45]} 20. Nb3 {[%clk 0:08:25.5]} 20... Nf4 {[%clk 0:07:38.2]} 21. Nxd4 {[%clk 0:08:21.9]} 21... exd4 {[%clk 0:07:30.9]} 22. Qc4+ {[%clk 0:08:11.7]} 22... Bf7 {[%clk 0:07:26.6]} 23. Qxd4 {[%clk 0:08:09.2]} 23... Nxe2 {[%clk 0:07:25]} 24. Qe3 {[%clk 0:07:59.3]} 24... Rae8 {[%clk 0:07:17.1]} 25. Qf2 {[%clk 0:07:56.6]} 25... Qf6 {[%clk 0:07:05.7]} 26. Na3 {[%clk 0:07:53.3]} 26... Qb2 {[%clk 0:06:45.6]} 27. Nb5 {[%clk 0:07:46.3]} 27... Qxb4 {[%clk 0:06:42.1]} 28. Nd6 {[%clk 0:07:42.4]} 28... Re6 {[%clk 0:06:35.6]} 29. Nxf5 {[%clk 0:07:38.8]} 29... Bg6 {[%clk 0:06:31]} 30. Nd4 {[%clk 0:07:30.4]} 30... Nxd4 {[%clk 0:06:26.1]} 31. Rae1 {[%clk 0:07:26]} 31... Ref6 {[%clk 0:06:18.1]} 32. Re4 {[%clk 0:07:23]} 32... Bxe4 {[%clk 0:06:15.1]} 33. dxe4 {[%clk 0:07:21.6]} 33... Re8 {[%clk 0:06:08.7]} 34. Re1 {[%clk 0:07:02.8]} 34... Qxc5 {[%clk 0:05:43.4]} 35. h3 {[%clk 0:07:00.5]} 35... Qe5 {[%clk 0:05:26]} 36. Rd1 {[%clk 0:06:57.2]} 36... Nc6 {[%clk 0:05:17.1]} 37. Rd5 {[%clk 0:06:47]} 37... Qxe4 {[%clk 0:05:06.3]} 38. Rd6 {[%clk 0:06:34.4]} 38... Qb1+ {[%clk 0:04:59]} 39. Qg1 {[%clk 0:06:26.7]} 39... Qxg1+ {[%clk 0:04:55.3]} 40. Kxg1 {[%clk 0:06:25.3]} 40... Rxd6 {[%clk 0:04:54.3]} 41. f4 {[%clk 0:06:24.4]} 0-1

[Event "Live Chess"]
[Site "Chess.com"]
[Date "2011.01.04"]
[Round "-"]
[White "AKIISSA"]
[Black "hipposcottimus"]
[Result "1-0"]
[CurrentPosition "rnb2rk1/2p3pp/pq3p2/1p1np3/4N3/1B1P3P/PPP2PP1/RN1QR1K1 w - -"]
[Timezone "UTC"]
[ECO "C20"]
[ECOUrl "https://www.chess.com/openings/Portuguese-Opening-2...Nf6"]
[UTCDate "2011.01.04"]
[UTCTime "02:12:33"]
[WhiteElo "1481"]
[BlackElo "1375"]
[TimeControl "600"]
[Termination "AKIISSA won by resignation"]
[StartTime "02:12:33"]
[EndDate "2011.01.04"]
[EndTime "02:15:33"]
[Link "https://www.chess.com/game/live/83986179"]

1. e4 {[%clk 0:10:00]} 1... e5 {[%clk 0:10:00]} 2. Bb5 {[%clk 0:09:57.3]} 2... Nf6 {[%clk 0:09:56.3]} 3. d3 {[%clk 0:09:53.9]} 3... Be7 {[%clk 0:09:49.6]} 4. h3 {[%clk 0:09:50.9]} 4... a6 {[%clk 0:09:45.8]} 5. Ba4 {[%clk 0:09:48.5]} 5... b5 {[%clk 0:09:44.6]} 6. Bb3 {[%clk 0:09:47.3]} 6... d5 {[%clk 0:09:40.7]} 7. exd5 {[%clk 0:09:40.4]} 7... Nxd5 {[%clk 0:09:38.4]} 8. Nf3 {[%clk 0:09:38.3]} 8... Qd6 {[%clk 0:08:59.9]} 9. O-O {[%clk 0:09:24.4]} 9... O-O {[%clk 0:08:50.1]} 10. Re1 {[%clk 0:09:23]} 10... Bf6 {[%clk 0:08:49.2]} 11. Bg5 {[%clk 0:09:18.2]} 11... Bxg5 {[%clk 0:08:30.9]} 12. Nxg5 {[%clk 0:09:16.4]} 12... f6 {[%clk 0:08:24.4]} 13. Ne4 {[%clk 0:09:04.4]} 13... Qb6 {[%clk 0:08:02.9]} 1-0